bitfinex/quotes_SOLUSD_20241020
["timestamp","ask_amount","ask_price","bid_price","bid_amount"]
[1729468009799,0.89722033,167.22,167.15,2.10103816]
[1729468009978,0.89722033,167.22,167.16,2.10103816]
[1729468010179,0.89722033,167.22,167.17,2.10103816]
[1729468010377,0.89722033,167.22,167.18,2.10103816]
[1729468010682,0.89722033,167.22,167.19,2.10103816]
[1729468010996,0.89722033,167.22,167.2,2.10103816]
[1729468011169,0.89722033,167.22,167.21,2.10103816]
[1729468011373,24.67410433,167.22,167.21,2.10103816]
[1729468011588,23.776884,167.21,167.1,6.6085]
[1729468011806,23.776884,167.21,167.11,2.10524313]
[1729468012096,23.776884,167.21,167.12,2.10524313]
[1729468012402,23.776884,167.21,167.13,2.10524313]
[1729468012579,23.776884,167.21,167.14,2.10524313]
[1729468012780,23.776884,167.21,167.15,2.10524313]
[1729468012975,23.776884,167.21,167.16,2.10543294]
[1729468013294,29.757384,167.21,167.17,2.10347824]
[1729468013507,29.757384,167.21,167.11,20.0]
[1729468013694,29.757384,167.21,167.12,2.10362859]
[1729468013887,29.757384,167.21,167.13,2.10362859]
[1729468014194,29.757384,167.21,167.14,2.10362859]
[1729468014398,23.776884,167.19,167.15,2.10362859]
[1729468014697,24.67430041,167.19,167.16,2.10362859]
[1729468014892,24.67430041,167.19,167.17,2.10362859]
[1729468015198,24.67430041,167.19,167.07,20.0]
[1729468015494,24.67430041,167.19,167.09,1.03846645]
[1729468015704,24.67430041,167.19,167.1,2.10375347]
[1729468015905,24.67430041,167.19,167.11,2.10375347]
[1729468016202,24.67430041,167.19,167.12,2.10375347]
[1729468016374,24.67430041,167.19,167.13,2.10394263]
[1729468016571,24.67430041,167.19,167.08,2.10394263]
[1729468016804,24.67430041,167.19,167.09,2.10394263]
[1729468016979,24.67430041,167.19,167.1,2.10394263]
[1729468017182,24.67430041,167.19,167.11,2.10394263]
[1729468017485,24.67430041,167.19,167.12,2.10394263]
[1729468017690,24.67430041,167.19,167.13,2.10394263]
[1729468017891,24.67430041,167.19,167.14,2.10394263]
[1729468018094,24.67430041,167.19,167.15,2.10394263]
[1729468018297,24.67430041,167.19,167.16,2.10394263]
[1729468018478,24.67430041,167.19,167.17,2.10394263]
[1729468018677,24.67430041,167.19,167.07,20.0]
[1729468018878,24.67430041,167.19,167.08,2.10487814]
[1729468019112,24.67430041,167.19,167.09,2.10487814]
[1729468019284,24.67430041,167.19,167.1,2.10487814]
[1729468019479,24.67430041,167.19,167.11,2.10487814]
[1729468019787,24.67430041,167.19,167.12,2.10487814]
[1729468019987,24.67430041,167.19,167.07,20.0]
[1729468019988,24.67430041,167.19,167.13,2.10487814]
[1729468020302,24.67430041,167.19,167.14,2.10487814]
[1729468020802,24.67430041,167.19,167.15,2.10487814]
[1729468020979,24.67430041,167.19,167.16,2.10487814]
[1729468021178,24.67430041,167.19,167.07,20.0]
[1729468021389,24.67430041,167.19,167.08,2.10529854]
[1729468021581,24.67430041,167.19,167.09,2.10529854]
[1729468021789,24.67430041,167.19,167.1,2.10529854]
[1729468021998,24.67430041,167.19,167.11,2.10529854]
[1729468022184,24.67430041,167.19,167.12,2.10529854]
[1729468022388,24.67430041,167.19,167.13,2.10624639]
[1729468022590,24.67430041,167.19,167.14,2.10624639]
[1729468022912,24.67430041,167.19,167.15,2.10645187]
[1729468023201,24.67430041,167.19,167.16,2.10645187]
[1729468023375,30.65570041,167.19,167.07,20.0]
[1729468023578,30.65570041,167.19,167.08,2.10706593]
[1729468023579,5.9815,167.18,167.08,2.10706593]
[1729468023803,23.776884,167.17,167.09,2.10706593]
[1729468024005,23.776884,167.17,167.1,2.10706593]
[1729468024179,23.776884,167.17,167.11,2.10706593]
[1729468024374,23.776884,167.17,167.12,2.10706593]
[1729468024591,23.776884,167.17,167.13,2.10706593]
[1729468024794,5.982,167.17,167.14,2.10706593]
[1729468024997,5.982,167.17,167.07,20.0]
[1729468024998,23.776884,167.16,167.07,20.0]
[1729468025299,23.776884,167.16,167.08,2.10779297]
[1729468025504,23.776884,167.16,167.09,2.10779297]
[1729468025707,23.776884,167.16,167.1,2.10779297]
[1729468025887,29.759084,167.17,167.07,20.0]
[1729468026088,29.759084,167.17,167.08,2.10782957]
[1729468026292,29.759084,167.17,167.09,2.10782957]
[1729468026478,29.759084,167.17,167.1,2.10782957]
[1729468026681,29.759084,167.17,167.11,2.10782957]
[1729468026884,23.776884,167.17,167.12,2.10782957]
[1729468027111,23.776884,167.17,167.13,2.10782957]
[1729468027405,16.4597,167.18,167.14,2.10782957]
[1729468027592,16.4597,167.18,167.15,2.10782957]
[1729468027906,16.4597,167.18,167.07,20.0]
[1729468028112,16.4597,167.18,167.08,2.10760971]
[1729468028414,16.4597,167.18,167.09,2.10760971]
[1729468028578,16.4597,167.18,167.1,2.10760971]
[1729468028783,16.4597,167.18,167.11,2.10760971]
[1729468028983,16.4597,167.18,167.12,2.10760971]
[1729468029189,16.4597,167.18,167.13,2.10760971]
[1729468029391,16.4597,167.18,167.14,2.10716548]
[1729468029608,16.4597,167.18,167.15,2.10716548]
[1729468029903,16.4597,167.18,167.16,2.10716548]
[1729468030106,16.4597,167.18,167.07,20.0]
[1729468030309,16.4597,167.18,167.08,2.10710885]
[1729468030512,16.4597,167.18,167.09,2.10710885]
[1729468030686,16.4597,167.18,167.1,2.10710885]
[1729468031000,16.4597,167.18,167.11,2.10710885]
[1729468031202,16.4597,167.18,167.12,2.10710885]
[1729468031405,16.4597,167.18,167.13,2.10710885]
[1729468031613,16.4597,167.18,167.14,2.10710885]
[1729468031804,16.4597,167.18,167.15,2.10710885]
[1729468032107,16.4597,167.18,167.07,20.0]
[1729468032108,16.4597,167.18,167.16,2.10710885]
[1729468032300,40.236584,167.18,167.17,2.10710885]
[1729468032984,40.236584,167.18,167.08,2.10710885]
[1729468033191,23.776884,167.17,167.09,2.10710885]
[1729468033402,23.776884,167.17,167.07,20.0]
[1729468033602,23.776884,167.17,167.08,2.10527301]
[1729468033805,23.776884,167.17,167.09,2.10527301]
[1729468033991,23.776884,167.17,167.1,2.10527301]
[1729468034192,23.776884,167.17,167.11,2.10527301]
[1729468034388,23.776884,167.17,167.12,2.10527301]
[1729468034603,23.776884,167.17,167.13,2.10527301]
[1729468034807,29.758884,167.17,167.14,2.10527301]
[1729468035112,23.976884,167.17,167.05,1.03859966]
[1729468035289,23.776884,167.13,167.06,2.10879443]
[1729468035498,24.67472338,167.13,167.07,2.10879443]
[1729468035686,24.67472338,167.13,167.08,2.10879443]
[1729468035888,30.65802338,167.13,167.09,2.10879443]
[1729468036116,30.65802338,167.13,167.1,2.10879443]
[1729468036319,30.65802338,167.13,167.11,2.10879443]
[1729468036615,30.65802338,167.13,167.03,20.0]
[1729468036794,30.65802338,167.13,167.04,2.10908076]
[1729468037101,30.65802338,167.13,167.05,2.10908076]
[1729468037307,30.65802338,167.13,167.06,2.10908076]
[1729468037506,30.65802338,167.13,167.07,2.10908076]
[1729468037728,30.65802338,167.13,167.08,2.10908076]
[1729468037919,30.65802338,167.13,167.09,2.10908076]
[1729468038101,30.65802338,167.13,167.1,2.10908076]
[1729468038295,30.65802338,167.13,167.11,2.10908076]
[1729468038490,30.65802338,167.13,167.12,2.1069525]
[1729468039314,30.65802338,167.13,167.03,20.0]
[1729468039626,30.65802338,167.13,167.04,2.10642278]
[1729468039789,30.65802338,167.13,167.05,2.10642278]
[1729468039994,30.65802338,167.13,167.03,20.0]
[1729468040193,30.65802338,167.13,167.06,2.10666883]
[1729468040393,30.65802338,167.13,167.03,20.0]
[1729468040617,30.65802338,167.13,167.04,2.10632025]
[1729468040911,30.65802338,167.13,167.05,2.10632025]
[1729468041116,30.65802338,167.13,167.06,2.10632025]
[1729468041319,30.65802338,167.13,167.07,2.10632025]
[1729468041493,30.65802338,167.13,167.08,2.10632025]
[1729468041693,30.65802338,167.13,167.09,2.10632025]
[1729468041914,30.65802338,167.13,167.1,2.10632025]
[1729468042116,30.65802338,167.13,167.11,2.10632025]
[1729468042417,30.65802338,167.13,167.03,20.0]
[1729468042612,30.65802338,167.13,167.04,2.10516097]
[1729468042818,30.65802338,167.13,167.05,2.10516097]
[1729468043019,30.65802338,167.13,167.06,2.10516097]
[1729468043206,30.65802338,167.13,167.07,2.10516097]
[1729468043403,30.65802338,167.13,167.08,2.10516097]
[1729468043608,30.65802338,167.13,167.09,2.10516097]
[1729468043922,30.65802338,167.13,167.1,2.10516097]
[1729468044110,30.65802338,167.13,167.11,2.10546078]
[1729468044295,30.65802338,167.13,167.03,20.0]
[1729468044496,30.65802338,167.13,167.04,2.10557361]
[1729468044696,30.65802338,167.13,167.05,2.10557361]
[1729468045006,30.65802338,167.13,167.06,2.10557361]
[1729468045200,30.65802338,167.13,167.07,2.10557361]
[1729468045404,30.65802338,167.13,167.08,2.10557361]
[1729468045613,30.65802338,167.13,167.09,2.10557361]
[1729468045813,23.776884,167.11,167.1,2.10557361]
[1729468046225,23.776884,167.11,167.04,2.10557361]
[1729468046406,23.776884,167.11,167.05,2.10557361]
[1729468046724,23.776884,167.11,167.06,2.10557361]
[1729468046900,23.776884,167.11,167.07,2.10557361]
[1729468047101,23.776884,167.11,167.08,2.1064516]
[1729468047301,23.776884,167.11,167.09,2.1064516]
[1729468047496,23.776884,167.11,167.1,2.1064516]
[1729468047710,23.776884,167.11,167.04,2.1064516]
[1729468047916,23.776884,167.11,167.05,2.1064516]
[1729468048102,23.776884,167.11,167.06,2.1064516]
[1729468048307,23.776884,167.11,167.07,2.1064516]
[1729468048617,23.776884,167.11,167.08,2.1064516]
[1729468048821,23.776884,167.11,167.09,2.1064516]
[1729468049023,23.776884,167.11,167.1,2.1064516]
[1729468049197,23.776884,167.11,167.04,2.1064516]
[1729468049399,23.776884,167.11,167.05,2.1064516]
[1729468049601,23.776884,167.11,167.06,2.1064516]
[1729468049894,23.776884,167.11,167.07,2.1064516]
[1729468050117,23.776884,167.11,167.08,2.1064516]
[1729468050318,23.776884,167.11,167.09,2.1064516]
[1729468050522,6.22136907,167.12,167.1,2.1064516]
[1729468050818,29.99825307,167.12,167.11,2.1064516]
[1729468050998,29.99825307,167.12,167.04,2.1064516]
[1729468051199,29.99825307,167.12,167.05,2.1064516]
[1729468051407,29.99825307,167.12,167.06,2.1064516]
[1729468051620,29.99825307,167.12,167.07,2.1064516]
[1729468051927,29.99825307,167.12,167.08,2.1064516]
[1729468052225,29.99825307,167.12,167.09,2.1064516]
[1729468052403,29.99825307,167.12,167.1,2.1064516]
[1729468052604,29.99825307,167.12,167.11,2.1064516]
[1729468052798,29.99825307,167.12,167.04,2.1064516]
[1729468053014,29.99825307,167.12,167.05,2.1064516]
[1729468053213,29.99825307,167.12,167.06,2.1064516]
[1729468053411,23.776884,167.11,167.07,2.1064516]
[1729468053608,23.776884,167.11,167.08,2.1064516]
[1729468053807,39.739684,167.11,167.09,2.1064516]
[1729468054034,45.723884,167.11,167.1,2.1064516]
[1729468054201,45.723884,167.11,167.04,2.1064516]
[1729468054400,45.723884,167.11,167.05,2.10587802]
[1729468054614,45.723884,167.11,167.06,2.10587802]
[1729468054819,45.723884,167.11,167.07,2.10587802]
[1729468055008,45.723884,167.11,167.08,2.10587802]
[1729468055209,45.723884,167.11,167.09,2.10587802]
[1729468055416,45.723884,167.11,167.1,2.10587802]
[1729468055926,45.723884,167.11,167.04,2.10587802]
[1729468056104,45.723884,167.11,167.05,2.10587802]
[1729468056412,45.723884,167.11,167.06,2.10587802]
[1729468056602,23.776884,167.09,167.07,2.10587802]
[1729468056807,23.776884,167.09,167.08,2.10587802]
[1729468057003,23.776884,167.09,167.04,2.10587802]
[1729468057204,23.776884,167.09,167.05,2.10587802]
[1729468057422,23.776884,167.09,167.06,2.10587802]
[1729468057604,24.67482338,167.09,167.07,2.10587802]
[1729468057814,24.67482338,167.09,167.08,2.10587802]
[1729468058015,24.67482338,167.09,167.04,2.10587802]
[1729468058214,24.67482338,167.09,167.05,2.10587802]
[1729468058415,24.67482338,167.09,167.06,2.10587802]
[1729468058619,24.67482338,167.09,167.07,2.10587802]
[1729468058820,24.67482338,167.09,167.08,2.10587802]
[1729468059014,30.65952338,167.09,167.08,2.10587802]
[1729468059415,30.65952338,167.09,167.02,0.1143415]
[1729468059633,5.9852,167.08,167.03,2.10572187]
[1729468059838,23.776884,167.07,167.03,2.10572187]
[1729468060331,23.776884,167.07,167.04,2.10572187]
[1729468060504,23.776884,167.07,167.05,2.10572187]
[1729468060838,0.89793938,167.09,167.06,2.10572187]
[1729468061041,0.89793938,167.09,167.07,2.10572187]
[1729468061330,0.89793938,167.09,167.08,2.10486218]
[1729468061532,0.89793938,167.09,167.02,0.1143415]
[1729468061533,0.89793938,167.09,167.03,2.10505219]
[1729468061739,0.89793938,167.09,167.04,2.10505219]
[1729468061923,5.9854,167.08,167.05,2.10505219]
[1729468062126,23.776884,167.07,167.06,2.10505219]
[1729468062313,23.776884,167.07,167.02,0.1143415]
[1729468062514,5.9869,167.04,167.02,0.1143415]
[1729468062737,23.776884,167.03,167.02,0.1143415]
[1729468063010,29.763784,167.03,167.02,0.1143415]
[1729468063924,29.863784,167.03,167.02,0.1143415]
[1729468064318,23.776884,167.03,167.02,0.1143415]
[1729468066828,29.99853756,167.03,167.02,0.1143415]
[1729468067137,23.776884,166.95,166.84,13.47010528]
[1729468067808,24.67557783,166.95,166.84,13.47010528]
[1729468068435,24.67557783,166.95,166.85,20.6143415]
[1729468069221,30.66537783,166.95,166.85,0.6143415]
[1729468069721,24.67557783,166.95,166.85,0.6143415]
[1729468070034,23.776884,166.94,166.86,21.1525]
[1729468070237,23.776884,166.92,166.86,21.1525]
[1729468070826,23.776884,166.94,166.86,21.1525]
[1729468072818,23.876884,166.94,166.85,0.6143415]
[1729468073029,23.776884,166.9,166.85,0.6143415]
[1729468073442,29.769184,166.88,166.85,0.6143415]
[1729468073647,5.9928,166.87,166.85,0.6143415]
[1729468073939,16.0165,166.89,166.85,0.6143415]
[1729468074116,23.776884,166.88,166.85,0.6143415]
[1729468074314,24.67603936,166.88,166.85,0.6143415]
[1729468075441,0.89915536,166.88,166.85,0.6143415]
[1729468077422,23.776884,166.87,166.85,0.6143415]
[1729468077619,29.769884,166.86,166.85,0.6143415]
[1729468079517,29.769884,166.86,166.84,6.99730528]
[1729468079518,29.870284,166.85,166.84,6.99730528]
[1729468079742,39.03611717,166.85,166.84,6.99730528]
[1729468080445,38.83611717,166.85,166.84,6.99730528]
[1729468080623,32.84271717,166.85,166.84,6.99730528]
[1729468080820,0.89915536,166.88,166.84,6.99730528]
[1729468082133,0.1,166.85,166.84,6.99730528]
[1729468082522,6.0934,166.85,166.84,6.99730528]
[1729468083446,56.360584,166.85,166.84,6.99730528]
[1729468083646,56.260584,166.85,166.84,5.59730528]
[1729468084524,36.160584,166.85,166.84,5.59730528]
[1729468084728,29.770284,166.85,166.84,5.59730528]
[1729468085126,5.9962,166.78,166.68,6.1142]
[1729468085432,23.776884,166.82,166.68,6.3142]
[1729468085630,29.771384,166.82,166.68,6.2142]
[1729468085827,9.06443472,166.87,166.71,0.2]
[1729468086146,15.05743472,166.87,166.72,0.1]
[1729468086346,15.05743472,166.87,166.72,20.1]
[1729468086550,9.16443472,166.87,166.72,20.0]
[1729468086736,5.993,166.86,166.72,20.0]
[1729468086938,9.16443472,166.87,166.72,20.0]
[1729468087244,5.9934,166.85,166.72,20.0]
[1729468087467,23.776884,166.84,166.72,20.0]
[1729468088648,23.776884,166.84,166.71,23.876884]
[1729468088649,23.776884,166.82,166.71,20.0]
[1729468088845,29.771284,166.82,166.71,20.0]
[1729468089054,23.776884,166.83,166.71,20.0]
[1729468089248,23.776884,166.85,166.73,20.0]
[1729468089456,6.22910529,166.86,166.76,20.1]
[1729468089627,0.89915536,166.88,166.78,20.0]
[1729468091052,23.776884,166.87,166.78,20.0]
[1729468091247,5.995,166.81,166.66,6.3893]
[1729468091450,23.776884,166.8,166.66,6.3893]
[1729468091832,23.776884,166.78,166.69,0.1143415]
[1729468092336,23.776884,166.79,166.69,0.1143415]
[1729468092857,0.1,166.81,166.69,0.1143415]
[1729468093034,23.776884,166.77,166.69,0.1143415]
[1729468093734,23.776884,166.78,166.69,0.1143415]
[1729468094350,29.772784,166.78,166.72,5.998]
[1729468094559,24.67641309,166.78,166.69,0.1143415]
[1729468095235,0.89952909,166.78,166.69,0.1143415]
[1729468096029,23.776884,166.77,166.69,0.1143415]
[1729468096230,5.9972,166.75,166.69,0.1143415]
[1729468096435,23.776884,166.77,166.69,0.1143415]
[1729468096436,5.9977,166.73,166.69,0.1143415]
[1729468096757,23.776884,166.72,166.69,0.1143415]
[1729468097352,29.775184,166.72,166.69,0.1143415]
[1729468098442,23.776884,166.72,166.69,0.1143415]
[1729468098643,16.08992909,166.78,166.69,0.1143415]
[1729468098644,6.89572909,166.78,166.69,0.1143415]
[1729468099736,0.1,166.74,166.69,0.1143415]
[1729468099939,0.1,166.73,166.69,0.1143415]
[1729468100238,23.776884,166.72,166.69,0.1143415]
[1729468100437,23.776884,166.7,166.69,0.1143415]
[1729468100635,6.23484394,166.73,166.69,0.1143415]
[1729468101056,6.5585,166.72,166.69,0.1143415]
[1729468101233,5.9988,166.7,166.69,0.1143415]
[1729468101637,5.9985,166.71,166.69,0.1143415]
[1729468101862,23.776884,166.7,166.69,0.1143415]
[1729468102359,29.775684,166.7,166.69,0.1143415]
[1729468105263,23.776884,166.7,166.69,0.1143415]
[1729468105459,29.775684,166.7,166.69,0.1143415]
[1729468106848,24.67687249,166.7,166.69,0.1143415]
[1729468108075,0.1,166.9,166.73,20.0]
[1729468108375,0.1,166.9,166.75,20.0]
[1729468108376,5.9923,166.88,166.75,20.0]
[1729468108665,0.1,166.91,166.75,20.0]
[1729468108843,0.1,166.9,166.75,20.0]
[1729468109041,5.992,166.89,166.77,20.0]
[1729468109438,0.1,166.87,166.74,20.0]
[1729468110063,5.9937,166.85,166.7,20.0]
[1729468110848,5.9937,166.85,166.72,20.0]
[1729468111257,23.776884,166.86,166.74,20.0]
[1729468111458,0.1,166.89,166.74,20.0]
[1729468111639,0.1,166.9,166.74,20.0]
[1729468111845,0.1,166.86,166.7,20.0]
[1729468112156,5.994,166.84,166.7,20.0]
[1729468113040,23.776884,166.85,166.72,20.0]
[1729468113552,20.1,166.89,166.71,23.776884]
[1729468113553,5.9927,166.87,166.74,20.0]
[1729468114062,5.993,166.86,166.74,20.0]
[1729468114368,5.9937,166.84,166.69,0.1143415]
[1729468114550,5.9956,166.79,166.69,0.1143415]
[1729468114750,23.776884,166.79,166.69,0.1143415]
[1729468114963,5.9962,166.78,166.69,0.1143415]
[1729468115161,5.9966,166.76,166.69,0.1143415]
[1729468116155,5.9977,166.73,166.69,0.1143415]
[1729468116475,23.776884,166.74,166.69,0.1143415]
[1729468116476,5.9985,166.71,166.69,0.1143415]
[1729468117790,23.776884,166.74,166.69,0.1143415]
[1729468117971,5.9987,166.71,166.69,0.1143415]
[1729468118266,5.9978,166.73,166.69,0.1143415]
[1729468118470,23.776884,166.72,166.69,0.1143415]
[1729468119966,29.774884,166.72,166.69,0.1143415]
[1729468120172,6.7108,166.75,166.69,0.1143415]
[1729468120173,5.9978,166.73,166.69,0.1143415]
[1729468120967,20.1,166.74,166.69,0.1143415]
[1729468121174,5.9984,166.71,166.69,0.1143415]
[1729468122281,12.23730293,166.71,166.69,0.1143415]
[1729468122460,5.9988,166.7,166.69,0.1143415]
[1729468124488,29.777484,166.65,166.63,0.35452829]
[1729468124655,23.776884,166.65,166.63,0.35452829]
[1729468124851,5.9991,166.69,166.63,0.35452829]
[1729468125156,15.0122,166.7,166.63,0.35452829]
[1729468125976,6.0009,166.64,166.63,0.35452829]
[1729468126272,0.90076693,166.64,166.63,0.35452829]
[1729468127070,6.90166693,166.64,166.63,0.35452829]
[1729468127279,0.90076693,166.64,166.63,0.35452829]
[1729468131155,12.23740293,166.71,166.63,0.35452829]
[1729468131358,6.23890293,166.71,166.63,0.35452829]
[1729468132165,0.90008989,166.7,166.63,0.35452829]
[1729468132770,0.90008989,166.7,166.63,20.35452829]
[1729468132974,0.90008989,166.7,166.64,25.88313125]
[1729468133171,0.90008989,166.7,166.65,2.10624725]
[1729468134669,0.90008989,166.7,166.66,23.776884]
[1729468134869,0.90017505,166.76,166.66,23.776884]
[1729468134870,0.90017505,166.76,166.67,8.72335899]
[1729468135073,0.90017505,166.76,166.68,2.10935899]
[1729468135684,0.90017505,166.76,166.67,6.614]
[1729468135881,0.90017505,166.76,166.68,2.10964907]
[1729468136684,0.90017505,166.76,166.68,22.10964907]
[1729468136877,0.90017505,166.76,166.69,2.10964907]
[1729468137083,0.90017505,166.76,166.68,20.0]
[1729468137285,0.90017505,166.76,166.69,2.11073685]
[1729468139362,5.9975,166.74,166.62,20.0]
[1729468139582,5.9975,166.74,166.63,2.46687307]
[1729468139987,0.90017505,166.76,166.63,2.46687307]
[1729468140173,6.89707505,166.76,166.63,2.46687307]
[1729468140374,5.997,166.75,166.65,20.0]
[1729468140563,5.997,166.75,166.66,2.11234478]
[1729468141366,0.90017505,166.76,166.66,2.11234478]
[1729468141677,0.90017505,166.76,166.65,20.0]
[1729468141877,0.90017505,166.76,166.66,2.1130738]
[1729468142469,6.89687505,166.76,166.66,2.1130738]
[1729468142869,0.90017505,166.76,166.66,2.1130738]
[1729468143181,0.90017505,166.76,166.68,20.0]
[1729468143385,0.90017505,166.76,166.69,2.1130738]
[1729468145380,0.90017505,166.76,166.7,2.11403957]
[1729468145582,0.90017505,166.76,166.68,20.0]
[1729468145792,0.90017505,166.76,166.7,20.0]
[1729468146112,0.90017505,166.76,166.71,2.11396992]
[1729468148677,0.90017505,166.76,166.7,20.0]
[1729468148998,0.90017505,166.76,166.71,2.11496717]
[1729468149583,6.89707505,166.76,166.71,2.11496717]
[1729468149809,0.90017505,166.76,166.65,6.5729]
[1729468150103,7.12935296,166.76,166.66,2.11510904]
[1729468150276,23.776884,166.75,166.67,2.11510904]
[1729468150476,5.9977,166.73,166.68,2.11510904]
[1729468150691,5.9991,166.7,166.63,0.35452829]
[1729468150873,6.89921532,166.7,166.63,0.35452829]
[1729468151978,6.89921532,166.7,166.63,2.47105965]
[1729468152294,6.89921532,166.7,166.64,2.11653136]
[1729468152601,6.89921532,166.7,166.63,0.35452829]
[1729468152602,5.9998,166.67,166.63,0.35452829]
[1729468152803,23.776884,166.69,166.63,0.35452829]
[1729468153397,6.0009,166.64,166.63,0.35452829]
[1729468153698,6.0006,166.65,166.63,0.35452829]
[1729468154901,15.3307,166.66,166.63,0.35452829]
[1729468155104,29.777484,166.65,166.63,0.35452829]
[1729468155978,15.3307,166.66,166.63,0.35452829]
[1729468156193,21.3309,166.66,166.63,0.35452829]
[1729468156605,6.0006,166.65,166.63,0.35452829]
[1729468160387,12.2326665,166.65,166.63,0.35452829]
[1729468161584,6.2320665,166.65,166.63,0.35452829]
[1729468162604,1.10011532,166.7,166.63,0.35452829]
[1729468162605,0.90011532,166.7,166.63,0.35452829]
[1729468162844,7.12933093,166.7,166.63,0.35452829]
[1729468166803,6.0002,166.66,166.63,0.35452829]
[1729468167001,6.90050302,166.66,166.63,0.35452829]
[1729468167518,6.0006,166.65,166.63,0.35452829]
[1729468167893,6.90050302,166.66,166.63,0.35452829]
[1729468168792,0.90030302,166.66,166.63,0.35452829]
[1729468170611,0.90030302,166.66,166.63,2.47084311]
[1729468170913,0.90030302,166.66,166.64,2.11631482]
[1729468171120,0.90030302,166.66,166.63,0.35452829]
[1729468178633,0.90030302,166.66,166.63,2.47581471]
[1729468178930,0.90030302,166.66,166.64,2.12128642]
[1729468179101,0.90030302,166.66,166.65,2.12128642]
[1729468179502,0.90030302,166.66,166.63,0.35452829]
[1729468181617,0.90030302,166.66,166.64,2.12083742]
[1729468182005,0.90030302,166.66,166.65,2.12083742]
[1729468182206,0.90030302,166.66,166.64,2.12083742]
[1729468182524,0.90030302,166.66,166.65,2.12083742]
[1729468182710,0.90030302,166.66,166.64,2.12083742]
[1729468183021,0.90030302,166.66,166.65,2.12083742]
[1729468184330,0.90030302,166.66,166.65,2.11560178]
[1729468188314,0.90011532,166.7,166.65,2.11560178]
[1729468188518,0.90011532,166.7,166.66,2.11560178]
[1729468188827,0.90011532,166.7,166.67,2.11560178]
[1729468189031,0.90011532,166.7,166.68,2.11560178]
[1729468189237,0.90011532,166.7,166.69,2.11560178]
[1729468189533,16.4302,166.8,166.7,20.0]
[1729468189835,6.2297727,166.78,166.71,2.11560178]
[1729468191837,6.2297727,166.78,166.7,20.0]
[1729468192043,6.2297727,166.78,166.71,2.11508653]
[1729468194940,6.2297727,166.78,166.7,20.0]
[1729468195242,6.2297727,166.78,166.71,2.11428078]
[1729468195740,6.2297727,166.78,166.72,2.11428078]
[1729468196038,6.2297727,166.78,166.73,2.11428078]
[1729468196336,6.2297727,166.78,166.74,2.11428078]
[1729468196527,6.2297727,166.78,166.7,20.0]
[1729468196719,6.2297727,166.78,166.71,2.11402031]
[1729468198141,5.9967,166.76,166.71,2.11402031]
[1729468198337,6.89647903,166.76,166.72,2.11402031]
[1729468198543,6.89647903,166.76,166.65,21.5611]
[1729468198735,6.89647903,166.76,166.66,2.11384065]
[1729468199047,0.89977903,166.76,166.67,2.11384065]
[1729468199233,0.89977903,166.76,166.68,2.11384065]
[1729468199436,0.89977903,166.76,166.69,2.11384065]
[1729468199620,21.8056,166.74,166.7,2.11384065]
[1729468199822,27.8032,166.74,166.63,0.35452829]
[1729468200034,27.8032,166.74,166.64,2.11403219]
[1729468200235,6.23157691,166.73,166.65,2.11403219]
[1729468200439,6.23157691,166.73,166.66,2.11403219]
[1729468200638,12.22937691,166.73,166.67,2.11403219]
[1729468200931,6.23157691,166.73,166.68,2.11403219]
[1729468201145,6.23157691,166.73,166.69,2.11439247]
[1729468201446,6.23157691,166.73,166.63,0.45452829]
[1729468201617,6.23157691,166.73,166.64,2.11428417]
[1729468201821,15.7942,166.74,166.65,2.11428417]
[1729468202019,0.89977903,166.76,166.66,25.89116817]
[1729468202219,6.2309436,166.75,166.67,22.11428417]
[1729468202421,6.2309436,166.75,166.68,2.11428417]
[1729468202621,6.2309436,166.75,166.69,2.11428417]
[1729468202821,6.2309436,166.75,166.7,2.11428417]
[1729468203061,6.2309436,166.75,166.71,2.11428417]
[1729468203221,6.2309436,166.75,166.72,2.11428417]
[1729468203417,6.2309436,166.75,166.73,2.11428417]
[1729468203632,6.2309436,166.75,166.67,26.4619]
[1729468203633,6.2309436,166.75,166.68,23.776884]
[1729468203824,6.2309436,166.75,166.69,22.09204495]
[1729468204032,6.2309436,166.75,166.7,2.09204495]
[1729468204426,6.2309436,166.75,166.71,2.09196003]
[1729468204626,6.2309436,166.75,166.72,2.09196003]
[1729468204922,6.2309436,166.75,166.69,20.0]
[1729468204923,6.2309436,166.75,166.73,2.09196003]
[1729468205124,6.2309436,166.75,166.69,20.0]
[1729468205347,0.89977903,166.76,166.7,2.09210787]
[1729468205523,0.89977903,166.76,166.69,20.1]